[Event "*** Titled Tuesday Blitz"]
[Site "Chess.com"]
[Date "2019.04.02"]
[Round "3"]
[White "Fighter008"]
[Black "enriquetejedor"]
[Result "0-1"]
[WhiteElo "2441"]
[BlackElo "2532"]
[TimeControl "180+2"]
[EndTime "14:39:10 PDT"]
[Termination "enriquetejedor won by resignation"]

1. e4 {[%clk 0:03:01.9]} 1... c5 {[%clk 0:03:00.9]} 2. Nf3 {[%clk 0:03:02.2]}
2... d6 {[%clk 0:03:01.5]} 3. d4 {[%clk 0:03:02.9]} 3... cxd4 {[%clk 0:03:03.4]}
4. Nxd4 {[%clk 0:03:04.1]} 4... Nf6 {[%clk 0:03:05.3]} 5. Nc3 {[%clk 0:03:05.3]}
5... Nc6 {[%clk 0:03:06.3]} 6. f3 {[%clk 0:03:05.3]} 6... e5 {[%clk 0:03:07.8]}
7. Nb3 {[%clk 0:03:06.2]} 7... Be6 {[%clk 0:03:08.6]} 8. Be3 {[%clk 0:03:06]}
8... Be7 {[%clk 0:03:09.5]} 9. Nd5 {[%clk 0:03:06.5]} 9... O-O {[%clk
0:03:10.4]} 10. Qd2 {[%clk 0:02:59.9]} 10... Bxd5 {[%clk 0:03:06.3]} 11. exd5
{[%clk 0:03:00.8]} 11... Nb8 {[%clk 0:03:05.3]} 12. Be2 {[%clk 0:02:58]} 12...
Nbd7 {[%clk 0:03:04.5]} 13. c4 {[%clk 0:02:58.7]} 13... Nh5 {[%clk 0:03:02.1]}
14. O-O {[%clk 0:02:57.7]} 14... f5 {[%clk 0:03:03.2]} 15. g3 {[%clk 0:02:38]}
15... f4 {[%clk 0:03:03.5]} 16. Bf2 {[%clk 0:02:38.5]} 16... fxg3 {[%clk
0:03:04.1]} 17. hxg3 {[%clk 0:02:39.4]} 17... Nhf6 {[%clk 0:03:03.2]} 18. Rae1
{[%clk 0:02:16.8]} 18... a5 {[%clk 0:03:04.2]} 19. Na1 {[%clk 0:02:10.5]} 19...
Qc7 {[%clk 0:03:03.1]} 20. Nc2 {[%clk 0:02:09.4]} 20... Nb6 {[%clk 0:03:02]} 21.
Na3 {[%clk 0:01:56.6]} 21... Nfd7 {[%clk 0:03:01.4]} 22. Nb5 {[%clk 0:01:56.8]}
22... Qd8 {[%clk 0:03:01.6]} 23. b3 {[%clk 0:01:41.8]} 23... Bg5 {[%clk
0:03:00.3]} 24. Qc2 {[%clk 0:01:28.6]} 24... Be7 {[%clk 0:03:01.4]} 25. Qe4
{[%clk 0:01:26.1]} 25... a4 {[%clk 0:03:00.6]} 26. Bd3 {[%clk 0:01:21.9]} 26...
Nf6 {[%clk 0:03:01.8]} 27. Qf5 {[%clk 0:01:18.3]} 27... axb3 {[%clk 0:02:59.2]}
28. axb3 {[%clk 0:01:18.7]} 28... Kh8 {[%clk 0:02:58.8]} 29. Qh3 {[%clk
0:01:11.4]} 29... Nbd7 {[%clk 0:02:58.9]} 30. Kg2 {[%clk 0:01:10.3]} 30... h6
{[%clk 0:02:37.9]} 31. Re2 {[%clk 0:01:09.2]} 31... Ra5 {[%clk 0:02:35.7]} 32.
Be3 {[%clk 0:00:54.7]} 32... Ng8 {[%clk 0:02:22.9]} 33. Bd2 {[%clk 0:00:42.4]}
33... Ra2 {[%clk 0:02:16.2]} 34. Qh5 {[%clk 0:00:38.9]} 34... e4 {[%clk
0:02:11.3]} 35. Bxe4 {[%clk 0:00:38.4]} 35... Ndf6 {[%clk 0:02:10.9]} 36. Qg6
{[%clk 0:00:36.9]} 36... Nxe4 {[%clk 0:02:11.8]} 37. Qxe4 {[%clk 0:00:38.5]}
37... Rf7 {[%clk 0:02:09.3]} 38. Nd4 {[%clk 0:00:38.4]} 38... Bf6 {[%clk
0:01:54.8]} 39. Ne6 {[%clk 0:00:38.7]} 39... Qb6 {[%clk 0:01:55.9]} 40. Qd3
{[%clk 0:00:38.9]} 40... Rb2 {[%clk 0:01:55]} 41. b4 {[%clk 0:00:37.6]} 41...
Be5 {[%clk 0:01:50.9]} 42. c5 {[%clk 0:00:38]} 42... Qa7 {[%clk 0:01:42]} 43. f4
{[%clk 0:00:38.6]} 43... Bf6 {[%clk 0:01:41.7]} 44. g4 {[%clk 0:00:28.9]} 44...
Qa2 {[%clk 0:01:29.9]} 45. g5 {[%clk 0:00:28.2]} 45... Rb3 {[%clk 0:01:19.5]}
46. Qg6 {[%clk 0:00:24.8]} 46... Rb2 {[%clk 0:01:07.6]} 47. Qd3 {[%clk
0:00:19.1]} 47... Rb3 {[%clk 0:01:06.9]} 48. Qg6 {[%clk 0:00:19.9]} 48... Rb2
{[%clk 0:01:08.1]} 49. Qxf7 {[%clk 0:00:20.4]} 49... Rxd2 {[%clk 0:00:57.1]} 50.
Rxd2 {[%clk 0:00:20.5]} 50... Qxd2+ {[%clk 0:00:59]} 51. Kg1 {[%clk 0:00:21.2]}
51... Bd4+ {[%clk 0:00:50.9]} 52. Nxd4 {[%clk 0:00:21.6]} 52... Qxd4+ {[%clk
0:00:52.8]} 53. Kg2 {[%clk 0:00:21.9]} 53... Qe4+ {[%clk 0:00:51.2]} 54. Rf3
{[%clk 0:00:22.1]} 54... Qe2+ {[%clk 0:00:50.4]} 55. Kg3 {[%clk 0:00:23]} 55...
Qe1+ {[%clk 0:00:49.9]} 56. Kg2 {[%clk 0:00:24.3]} 56... Qxb4 {[%clk 0:00:49.3]}
57. cxd6 {[%clk 0:00:19.2]} 57... Qxd6 {[%clk 0:00:48.6]} 58. Qe6 {[%clk
0:00:19.4]} 58... Qc5 {[%clk 0:00:41.5]} 59. d6 {[%clk 0:00:20.1]} 59... Qc2+
{[%clk 0:00:42.5]} 60. Rf2 {[%clk 0:00:20.9]} 60... Qc6+ {[%clk 0:00:44.2]} 61.
Kh2 {[%clk 0:00:22.2]} 61... Qb6 {[%clk 0:00:43.5]} 62. Rd2 {[%clk 0:00:21.6]}
62... Qb4 {[%clk 0:00:42.8]} 63. Qe5 {[%clk 0:00:21.8]} 63... Qxd2+ {[%clk
0:00:43.2]} 64. Kh3 {[%clk 0:00:21.5]} 64... b5 {[%clk 0:00:37.3]} 65. Kg4
{[%clk 0:00:18.3]} 65... b4 {[%clk 0:00:35.1]} 66. Kf5 {[%clk 0:00:19.5]} 66...
Qd3+ {[%clk 0:00:34.4]} 67. Ke6 {[%clk 0:00:19.8]} 67... b3 {[%clk 0:00:32.5]}
68. Kf7 {[%clk 0:00:20.3]} 68... Qc4+ {[%clk 0:00:05.5]} 69. Kf8 {[%clk
0:00:21.3]} 69... Qc8+ {[%clk 0:00:06.2]} 70. Kf7 {[%clk 0:00:21]} 70... Qd7+
{[%clk 0:00:06.5]} 71. Kg6 {[%clk 0:00:17.5]} 71... b2 {[%clk 0:00:07.1]} 72. f5
{[%clk 0:00:16.4]} 72... b1=Q {[%clk 0:00:06.4]} 73. gxh6 {[%clk 0:00:16]} 73...
Qg1+ {[%clk 0:00:06.1]} 74. Kh5 {[%clk 0:00:16.8]} 74... Nf6+ {[%clk 0:00:07.2]}
0-1

[Event "*** Titled Tuesday Blitz"]
[Site "Chess.com"]
[Date "2019.04.02"]
[Round "3"]
[White "Sajkochess"]
[Black "Dixit_Nikhil"]
[Result "1/2-1/2"]
[WhiteElo "2298"]
[BlackElo "2483"]
[TimeControl "180+2"]
[EndTime "14:39:20 PDT"]
[Termination "Game drawn - insufficient material"]

1. e4 {[%clk 0:03:01.9]} 1... g6 {[%clk 0:02:59.4]} 2. d4 {[%clk 0:02:58.6]}
2... Bg7 {[%clk 0:03:00.7]} 3. Nf3 {[%clk 0:02:57.8]} 3... d6 {[%clk 0:03:01.4]}
4. Be2 {[%clk 0:02:57.5]} 4... Nf6 {[%clk 0:03:01.2]} 5. Nc3 {[%clk 0:02:58]}
5... O-O {[%clk 0:02:58.6]} 6. O-O {[%clk 0:02:59.3]} 6... Nbd7 {[%clk
0:02:57.6]} 7. e5 {[%clk 0:02:53]} 7... Ne8 {[%clk 0:02:51.5]} 8. Bf4 {[%clk
0:02:48.2]} 8... c6 {[%clk 0:02:33.3]} 9. Qd2 {[%clk 0:02:47]} 9... Nb6 {[%clk
0:02:33.5]} 10. Rad1 {[%clk 0:02:40.6]} 10... Nc7 {[%clk 0:02:33.2]} 11. Bh6
{[%clk 0:02:36.1]} 11... Bg4 {[%clk 0:02:25.3]} 12. Bxg7 {[%clk 0:02:21.9]}
12... Kxg7 {[%clk 0:02:27.1]} 13. Qf4 {[%clk 0:02:22.7]} 13... Bxf3 {[%clk
0:02:22.5]} 14. Bxf3 {[%clk 0:02:24.6]} 14... Nbd5 {[%clk 0:02:01.9]} 15. Nxd5
{[%clk 0:02:24]} 15... Nxd5 {[%clk 0:02:03.8]} 16. Bxd5 {[%clk 0:02:24.4]} 16...
cxd5 {[%clk 0:02:02.8]} 17. exd6 {[%clk 0:02:25.5]} 17... Qxd6 {[%clk
0:02:04.7]} 18. Qxd6 {[%clk 0:02:25.5]} 18... exd6 {[%clk 0:02:06.6]} 19. Rfe1
{[%clk 0:02:26.4]} 19... Kf6 {[%clk 0:02:04.5]} 20. f3 {[%clk 0:02:25.8]} 20...
Rfc8 {[%clk 0:02:03.2]} 21. c3 {[%clk 0:02:25.5]} 21... b5 {[%clk 0:02:04.7]}
22. Rd3 {[%clk 0:02:25.4]} 22... a5 {[%clk 0:02:03.3]} 23. Rde3 {[%clk
0:02:14.1]} 23... b4 {[%clk 0:01:52.4]} 24. Re7 {[%clk 0:02:07.8]} 24... bxc3
{[%clk 0:01:51.2]} 25. bxc3 {[%clk 0:02:07.8]} 25... Rxc3 {[%clk 0:01:53.1]} 26.
Rd7 {[%clk 0:02:08.9]} 26... Rc6 {[%clk 0:01:49.3]} 27. Ree7 {[%clk 0:01:56.4]}
27... Rf8 {[%clk 0:01:48.5]} 28. h4 {[%clk 0:01:49.9]} 28... Rc4 {[%clk
0:01:37.1]} 29. Re3 {[%clk 0:01:40.4]} 29... Rxd4 {[%clk 0:01:36.9]} 30. Rxd6+
{[%clk 0:01:41.1]} 30... Kg7 {[%clk 0:01:36.8]} 31. h5 {[%clk 0:01:39.5]} 31...
Rb8 {[%clk 0:01:34.5]} 32. Re7 {[%clk 0:01:30.5]} 32... Rd1+ {[%clk 0:01:34]}
33. Kh2 {[%clk 0:01:30.3]} 33... Rd2 {[%clk 0:01:35.6]} 34. Rdd7 {[%clk
0:01:27.3]} 34... Rf8 {[%clk 0:01:33.3]} 35. Re5 {[%clk 0:01:16.5]} 35... Rxa2
{[%clk 0:01:30.3]} 36. Rdxd5 {[%clk 0:01:17.1]} 36... Ra8 {[%clk 0:01:27.9]} 37.
Kh3 {[%clk 0:01:12.9]} 37... a4 {[%clk 0:01:27.9]} 38. Ra5 {[%clk 0:01:13.3]}
38... Rxa5 {[%clk 0:01:27.9]} 39. Rxa5 {[%clk 0:01:15.2]} 39... Ra1 {[%clk
0:01:28.8]} 40. hxg6 {[%clk 0:01:07.5]} 40... hxg6 {[%clk 0:01:28.6]} 41. Kg4
{[%clk 0:01:03.6]} 41... a3 {[%clk 0:01:26]} 42. g3 {[%clk 0:01:04.4]} 42... f6
{[%clk 0:01:23.8]} 43. Ra7+ {[%clk 0:00:57.4]} 43... Kf8 {[%clk 0:01:24.5]} 44.
f4 {[%clk 0:00:52.4]} 44... Ke8 {[%clk 0:01:21.9]} 45. f5 {[%clk 0:00:53.2]}
45... gxf5+ {[%clk 0:01:17.7]} 46. Kxf5 {[%clk 0:00:54]} 46... a2 {[%clk
0:01:19.3]} 47. Kg6 {[%clk 0:00:50.7]} 47... Kd8 {[%clk 0:01:17.6]} 48. Ra8+
{[%clk 0:00:43.8]} 48... Kc7 {[%clk 0:01:15.4]} 49. g4 {[%clk 0:00:42.9]} 49...
Kb7 {[%clk 0:01:15.2]} 50. Ra3 {[%clk 0:00:42.5]} 50... Kc6 {[%clk 0:01:13.9]}
51. Ra6+ {[%clk 0:00:38.9]} 51... Kd5 {[%clk 0:01:13.6]} 52. Ra4 {[%clk
0:00:31.9]} 52... Ke5 {[%clk 0:01:12.3]} 53. Kf7 {[%clk 0:00:29.2]} 53... Kd5
{[%clk 0:01:08.1]} 54. Ra5+ {[%clk 0:00:23.8]} 54... Kc6 {[%clk 0:01:07.6]} 55.
Ra6+ {[%clk 0:00:21.4]} 55... Kb5 {[%clk 0:01:07.5]} 56. Ra8 {[%clk 0:00:21.5]}
56... Kb4 {[%clk 0:01:07.1]} 57. Kxf6 {[%clk 0:00:20.7]} 57... Rf1+ {[%clk
0:01:04.6]} 58. Ke6 {[%clk 0:00:21.1]} 58... a1=Q {[%clk 0:01:06.5]} 59. Rxa1
{[%clk 0:00:20.6]} 59... Rxa1 {[%clk 0:01:07.8]} 60. g5 {[%clk 0:00:21.7]} 60...
Rg1 {[%clk 0:00:49.2]} 61. Kf6 {[%clk 0:00:21.6]} 61... Kc5 {[%clk 0:00:49.9]}
62. g6 {[%clk 0:00:21.8]} 62... Rf1+ {[%clk 0:00:49.5]} 63. Ke7 {[%clk
0:00:18.8]} 63... Re1+ {[%clk 0:00:49.5]} 64. Kf7 {[%clk 0:00:19.5]} 64... Rf1+
{[%clk 0:00:50.7]} 65. Ke7 {[%clk 0:00:20.2]} 65... Rg1 {[%clk 0:00:49.9]} 66.
Kf7 {[%clk 0:00:20.5]} 66... Kd6 {[%clk 0:00:51.8]} 67. g7 {[%clk 0:00:21.4]}
67... Rf1+ {[%clk 0:00:51.9]} 68. Ke8 {[%clk 0:00:18.6]} 68... Re1+ {[%clk
0:00:52.7]} 69. Kf8 {[%clk 0:00:13.4]} 69... Rf1+ {[%clk 0:00:51.8]} 70. Ke8
{[%clk 0:00:13.2]} 70... Re1+ {[%clk 0:00:51.8]} 71. Kf8 {[%clk 0:00:13.2]}
71... Rf1+ {[%clk 0:00:52.8]} 72. Ke8 {[%clk 0:00:14.1]} 72... Rg1 {[%clk
0:00:54.7]} 73. Kf8 {[%clk 0:00:13.8]} 73... Kd7 {[%clk 0:00:51.7]} 74. g8=Q
{[%clk 0:00:10.9]} 74... Rf1+ {[%clk 0:00:52.7]} 75. Kg7 {[%clk 0:00:11.4]}
75... Rg1+ {[%clk 0:00:53.9]} 76. Kh8 {[%clk 0:00:11.9]} 76... Rh1+ {[%clk
0:00:52.6]} 77. Qh7+ {[%clk 0:00:12.8]} 77... Rxh7+ {[%clk 0:00:53]} 78. Kxh7
{[%clk 0:00:14.7]} 1/2-1/2

[Event "*** Titled Tuesday Blitz"]
[Site "Chess.com"]
[Date "2019.04.02"]
[Round "3"]
[White "Koksik_13"]
[Black "Mostii"]
[Result "1/2-1/2"]
[WhiteElo "2657"]
[BlackElo "2474"]
[TimeControl "180+2"]
[EndTime "14:39:34 PDT"]
[Termination "Game drawn by repetition"]

1. e4 {[%clk 0:03:01.9]} 1... e6 {[%clk 0:03:00.4]} 2. d4 {[%clk 0:03:01.8]}
2... d5 {[%clk 0:03:02.3]} 3. Nc3 {[%clk 0:03:02.4]} 3... Nf6 {[%clk 0:03:03.3]}
4. e5 {[%clk 0:03:02.7]} 4... Nfd7 {[%clk 0:03:04.5]} 5. f4 {[%clk 0:03:04.2]}
5... c5 {[%clk 0:03:05.9]} 6. Nf3 {[%clk 0:03:05.6]} 6... Nc6 {[%clk 0:03:07.8]}
7. Be3 {[%clk 0:03:07.2]} 7... cxd4 {[%clk 0:03:08.2]} 8. Nxd4 {[%clk 0:03:08]}
8... a6 {[%clk 0:03:09.7]} 9. Qd2 {[%clk 0:03:08.5]} 9... Bc5 {[%clk 0:03:11.2]}
10. Nd1 {[%clk 0:03:07.5]} 10... Nxd4 {[%clk 0:03:11.9]} 11. Bxd4 {[%clk
0:03:06.6]} 11... b5 {[%clk 0:03:13.1]} 12. c3 {[%clk 0:03:07.2]} 12... Bxd4
{[%clk 0:03:14.1]} 13. Qxd4 {[%clk 0:03:07.4]} 13... Qb6 {[%clk 0:03:14.8]} 14.
Ne3 {[%clk 0:03:08.2]} 14... Bb7 {[%clk 0:03:15.6]} 15. Be2 {[%clk 0:03:01.9]}
15... g6 {[%clk 0:03:16]} 16. O-O {[%clk 0:02:59.6]} 16... Qxd4 {[%clk
0:03:16.7]} 17. cxd4 {[%clk 0:02:59.1]} 17... Ke7 {[%clk 0:03:18]} 18. Rfc1
{[%clk 0:02:59.3]} 18... Rac8 {[%clk 0:03:18.1]} 19. g4 {[%clk 0:02:58]} 19...
Nb6 {[%clk 0:03:18.1]} 20. b3 {[%clk 0:02:58]} 20... Rxc1+ {[%clk 0:03:18.6]}
21. Rxc1 {[%clk 0:02:59.8]} 21... Rc8 {[%clk 0:03:20.5]} 22. Rxc8 {[%clk
0:03:00]} 22... Bxc8 {[%clk 0:03:21.8]} 23. g5 {[%clk 0:02:55.8]} 23... Bd7
{[%clk 0:03:18.5]} 24. Kf2 {[%clk 0:02:55.3]} 24... a5 {[%clk 0:03:19.9]} 25. h4
{[%clk 0:02:55.7]} 25... b4 {[%clk 0:03:21.1]} 26. h5 {[%clk 0:02:56.8]} 26...
Nc8 {[%clk 0:03:15.5]} 27. h6 {[%clk 0:02:54.4]} 27... Na7 {[%clk 0:03:16.6]}
28. Ng4 {[%clk 0:02:55.3]} 28... Bb5 {[%clk 0:03:04.8]} 29. Nf6 {[%clk
0:02:55.5]} 29... Bxe2 {[%clk 0:02:59.4]} 30. Kxe2 {[%clk 0:02:56]} 30... Nb5
{[%clk 0:03:01.3]} 31. Kd3 {[%clk 0:02:55.7]} 31... Nc3 {[%clk 0:03:02.5]} 32.
Nxh7 {[%clk 0:02:49.5]} 32... Nxa2 {[%clk 0:03:03.4]} 33. Nf6 {[%clk 0:02:31.9]}
33... Kf8 {[%clk 0:03:03.9]} 34. Nd7+ {[%clk 0:02:21.7]} 34... Kg8 {[%clk
0:03:02.2]} 35. Kc2 {[%clk 0:02:18.6]} 35... Nc3 {[%clk 0:02:55]} 36. Nb8 {[%clk
0:02:17.7]} 36... a4 {[%clk 0:02:39.5]} 37. bxa4 {[%clk 0:02:16.5]} 37... Nxa4
{[%clk 0:02:41.4]} 38. Nc6 {[%clk 0:02:18]} 38... Nc3 {[%clk 0:02:42.1]} 39. Kd3
{[%clk 0:02:09.3]} 39... Na2 {[%clk 0:02:42.5]} 40. Kc2 {[%clk 0:02:07.5]} 40...
Nc3 {[%clk 0:02:43.4]} 41. Kd3 {[%clk 0:01:33.1]} 41... Na2 {[%clk 0:02:42.7]}
42. Na5 {[%clk 0:01:31.1]} 42... Kh7 {[%clk 0:02:09.4]} 43. Nb3 {[%clk
0:01:31.3]} 43... Kg8 {[%clk 0:02:05.1]} 44. Nc5 {[%clk 0:01:31.6]} 44... Nc3
{[%clk 0:01:59.7]} 45. Na6 {[%clk 0:01:29.6]} 45... Na2 {[%clk 0:01:59.2]} 46.
Kc2 {[%clk 0:01:21.2]} 46... Nc3 {[%clk 0:01:59.8]} 47. Nxb4 {[%clk 0:01:20.3]}
47... Ne2 {[%clk 0:02:00.9]} 48. Nd3 {[%clk 0:01:17.7]} 48... Nxd4+ {[%clk
0:02:00.7]} 49. Kc3 {[%clk 0:01:19]} 49... Nf5 {[%clk 0:01:29.7]} 50. Kb4 {[%clk
0:01:19.3]} 50... Kh7 {[%clk 0:01:20.5]} 51. Kc5 {[%clk 0:01:20.2]} 51... Nxh6
{[%clk 0:01:15.7]} 52. gxh6 {[%clk 0:01:20.7]} 52... Kxh6 {[%clk 0:01:17.6]} 53.
Nf2 {[%clk 0:00:20.2]} 53... g5 {[%clk 0:01:17.4]} 54. Ng4+ {[%clk 0:00:20.6]}
54... Kg6 {[%clk 0:01:18.8]} 55. fxg5 {[%clk 0:00:14.6]} 55... Kxg5 {[%clk
0:01:17.8]} 56. Nf6 {[%clk 0:00:14.6]} 56... Kf5 {[%clk 0:01:09.6]} 57. Kd4
{[%clk 0:00:14.1]} 57... Kg6 {[%clk 0:01:10.9]} 58. Ne8 {[%clk 0:00:13.1]} 58...
Kf5 {[%clk 0:01:11.5]} 59. Nd6+ {[%clk 0:00:11.6]} 59... Kg6 {[%clk 0:01:12.5]}
60. Ne8 {[%clk 0:00:12.9]} 60... Kf5 {[%clk 0:01:13.7]} 61. Nf6 {[%clk
0:00:14.4]} 61... Kg6 {[%clk 0:01:12.9]} 62. Ng4 {[%clk 0:00:14.2]} 62... Kf5
{[%clk 0:01:12.8]} 63. Nh6+ {[%clk 0:00:13.1]} 63... Kg6 {[%clk 0:01:13.3]} 64.
Ng8 {[%clk 0:00:14.6]} 64... Kg5 {[%clk 0:01:08.4]} 65. Nf6 {[%clk 0:00:09.8]}
65... Kf5 {[%clk 0:01:09]} 66. Nd7 {[%clk 0:00:11.3]} 66... Kg5 {[%clk
0:01:06.8]} 67. Ke3 {[%clk 0:00:12.5]} 67... Kf5 {[%clk 0:01:06.3]} 68. Kf3
{[%clk 0:00:13.1]} 68... Kg5 {[%clk 0:01:03.2]} 69. Kg3 {[%clk 0:00:14.4]} 69...
Kf5 {[%clk 0:01:03.7]} 70. Kf2 {[%clk 0:00:10.2]} 70... Kg5 {[%clk 0:01:02.5]}
71. Ke3 {[%clk 0:00:11.3]} 71... Kf5 {[%clk 0:01:04]} 72. Kd2 {[%clk 0:00:12.6]}
72... Kg5 {[%clk 0:01:02.2]} 73. Ke2 {[%clk 0:00:11.9]} 73... Kf5 {[%clk
0:01:03.3]} 74. Ke1 {[%clk 0:00:12.6]} 74... Kg5 {[%clk 0:01:04.5]} 75. Kf2
{[%clk 0:00:12.9]} 75... Kf5 {[%clk 0:01:05.9]} 76. Kf3 {[%clk 0:00:13.9]} 76...
Kg5 {[%clk 0:01:05.7]} 77. Kg3 {[%clk 0:00:15.2]} 77... Kf5 {[%clk 0:01:06.1]}
78. Kg2 {[%clk 0:00:16.5]} 78... Kg5 {[%clk 0:01:07.1]} 79. Kf1 {[%clk
0:00:17.8]} 79... Kf5 {[%clk 0:01:08.1]} 80. Ke2 {[%clk 0:00:17.7]} 80... Ke4
{[%clk 0:01:06.7]} 81. Kd2 {[%clk 0:00:17.3]} 81... Kd4 {[%clk 0:01:01.5]} 82.
Kc2 {[%clk 0:00:17.6]} 82... Kc4 {[%clk 0:01:00.3]} 83. Kc1 {[%clk 0:00:18.1]}
83... Kd4 {[%clk 0:01:00.7]} 84. Kd1 {[%clk 0:00:19.2]} 84... Ke4 {[%clk
0:01:01.8]} 85. Ke1 {[%clk 0:00:20.3]} 85... Kf5 {[%clk 0:01:00.7]} 86. Ke2
{[%clk 0:00:19.2]} 86... Ke4 {[%clk 0:01:01.8]} 87. Kf2 {[%clk 0:00:19.9]} 87...
Kf4 {[%clk 0:01:03]} 88. Kg2 {[%clk 0:00:20.5]} 88... Kg4 {[%clk 0:01:04.3]} 89.
Kf1 {[%clk 0:00:20.6]} 89... Kf4 {[%clk 0:01:05.3]} 90. Ke1 {[%clk 0:00:21.5]}
90... Ke4 {[%clk 0:01:05.8]} 91. Kd2 {[%clk 0:00:21.6]} 91... Kd4 {[%clk
0:01:07.1]} 92. Ke2 {[%clk 0:00:21.3]} 92... Ke4 {[%clk 0:01:08.4]} 1/2-1/2

[Event "*** Titled Tuesday Blitz"]
[Site "Chess.com"]
[Date "2019.04.02"]
[Round "3"]
[White "DenisQ"]
[Black "Rap_woyska"]
[Result "1/2-1/2"]
[WhiteElo "2640"]
[BlackElo "2537"]
[TimeControl "180+2"]
[EndTime "14:39:58 PDT"]
[Termination "Game drawn by stalemate"]

1. Nf3 {[%clk 0:02:57.6]} 1... d5 {[%clk 0:03:01.2]} 2. d4 {[%clk 0:02:56.5]}
2... Nf6 {[%clk 0:03:02.1]} 3. c4 {[%clk 0:02:57.4]} 3... c6 {[%clk 0:03:03.6]}
4. cxd5 {[%clk 0:02:54.8]} 4... cxd5 {[%clk 0:03:05.5]} 5. Nc3 {[%clk
0:02:55.5]} 5... Nc6 {[%clk 0:03:07]} 6. Bf4 {[%clk 0:02:54.7]} 6... Bf5 {[%clk
0:03:08.1]} 7. e3 {[%clk 0:02:54.8]} 7... e6 {[%clk 0:03:08.8]} 8. Ne5 {[%clk
0:02:55.8]} 8... a6 {[%clk 0:03:07.5]} 9. Nxc6 {[%clk 0:02:42.3]} 9... bxc6
{[%clk 0:03:07.5]} 10. Bd3 {[%clk 0:02:42.9]} 10... Bxd3 {[%clk 0:03:06.2]} 11.
Qxd3 {[%clk 0:02:44.8]} 11... c5 {[%clk 0:03:07.5]} 12. O-O {[%clk 0:02:40.8]}
12... cxd4 {[%clk 0:03:06.6]} 13. Qxd4 {[%clk 0:02:36.2]} 13... Be7 {[%clk
0:03:00.6]} 14. Rac1 {[%clk 0:02:13.9]} 14... O-O {[%clk 0:02:55.1]} 15. Na4
{[%clk 0:02:08]} 15... Qa5 {[%clk 0:02:19.8]} 16. Bc7 {[%clk 0:01:45]} 16... Qb5
{[%clk 0:02:17.5]} 17. Rc2 {[%clk 0:01:41.4]} 17... Nd7 {[%clk 0:02:07]} 18. b3
{[%clk 0:01:30.5]} 18... Rfc8 {[%clk 0:02:03.5]} 19. Rfc1 {[%clk 0:01:15.1]}
19... Bf6 {[%clk 0:01:18.8]} 20. Qd1 {[%clk 0:01:13.6]} 20... Qb7 {[%clk
0:01:17]} 21. h3 {[%clk 0:00:59.6]} 21... h6 {[%clk 0:01:12.4]} 22. Qd2 {[%clk
0:00:54.4]} 22... Be5 {[%clk 0:00:55.5]} 23. Bxe5 {[%clk 0:00:49.2]} 23... Nxe5
{[%clk 0:00:57.4]} 24. Nc5 {[%clk 0:00:46.4]} 24... Qe7 {[%clk 0:00:54.1]} 25.
Nxa6 {[%clk 0:00:39.7]} 25... Rxc2 {[%clk 0:00:52.7]} 26. Qxc2 {[%clk
0:00:41.6]} 26... Qa3 {[%clk 0:00:21.3]} 27. Nc7 {[%clk 0:00:20.3]} 27... Rc8
{[%clk 0:00:21.3]} 28. Qc3 {[%clk 0:00:17.2]} 28... Nd7 {[%clk 0:00:13.3]} 29.
Rc2 {[%clk 0:00:18]} 29... Nb6 {[%clk 0:00:11.9]} 30. Qc6 {[%clk 0:00:18.4]}
30... Na8 {[%clk 0:00:11.6]} 31. Qb7 {[%clk 0:00:14.5]} 31... Rxc7 {[%clk
0:00:11.8]} 32. Qb8+ {[%clk 0:00:14.9]} 32... Kh7 {[%clk 0:00:09.3]} 33. Rxc7
{[%clk 0:00:16.4]} 33... Nxc7 {[%clk 0:00:09.4]} 34. Qxc7 {[%clk 0:00:18.3]}
34... Qxa2 {[%clk 0:00:09.5]} 35. Qxf7 {[%clk 0:00:19.2]} 35... Qa1+ {[%clk
0:00:07.3]} 36. Kh2 {[%clk 0:00:19.5]} 36... Qe5+ {[%clk 0:00:09.2]} 37. Qf4
{[%clk 0:00:19.8]} 37... Qb2 {[%clk 0:00:09.1]} 38. b4 {[%clk 0:00:19.8]} 38...
Kh8 {[%clk 0:00:07.4]} 39. f3 {[%clk 0:00:17.9]} 39... Kh7 {[%clk 0:00:06.5]}
40. Qd4 {[%clk 0:00:17.6]} 40... Qb3 {[%clk 0:00:06]} 41. e4 {[%clk 0:00:18.2]}
41... dxe4 {[%clk 0:00:07]} 42. Qxe4+ {[%clk 0:00:19.1]} 42... Kh8 {[%clk
0:00:08.6]} 43. f4 {[%clk 0:00:19.6]} 43... Qb2 {[%clk 0:00:08.2]} 44. Qc4
{[%clk 0:00:18.9]} 44... Qb1 {[%clk 0:00:06.4]} 45. b5 {[%clk 0:00:18.9]} 45...
Kh7 {[%clk 0:00:06.4]} 46. Qc6 {[%clk 0:00:17]} 46... Qb4 {[%clk 0:00:07.3]} 47.
Qc2+ {[%clk 0:00:12.4]} 47... Kh8 {[%clk 0:00:07.8]} 48. Qc8+ {[%clk 0:00:10.6]}
48... Kh7 {[%clk 0:00:09]} 49. Kg3 {[%clk 0:00:10.9]} 49... Qxb5 {[%clk
0:00:08.6]} 50. Qxe6 {[%clk 0:00:11.1]} 50... Qd3+ {[%clk 0:00:10]} 51. Kh2
{[%clk 0:00:12.3]} 51... Qd2 {[%clk 0:00:10.5]} 52. Qe4+ {[%clk 0:00:12.9]}
52... Kh8 {[%clk 0:00:11.7]} 53. h4 {[%clk 0:00:13.7]} 53... Qd6 {[%clk
0:00:12.7]} 54. Kh3 {[%clk 0:00:14.6]} 54... Qd2 {[%clk 0:00:13.4]} 55. g3
{[%clk 0:00:15.2]} 55... Qd1 {[%clk 0:00:14.4]} 56. Qe8+ {[%clk 0:00:14.7]}
56... Kh7 {[%clk 0:00:15.6]} 57. Qe4+ {[%clk 0:00:16.6]} 57... Kh8 {[%clk
0:00:16.4]} 58. f5 {[%clk 0:00:17.6]} 58... Qf1+ {[%clk 0:00:15.1]} 59. Kg4
{[%clk 0:00:18.6]} 59... Qd1+ {[%clk 0:00:16.4]} 60. Qf3 {[%clk 0:00:19.8]}
60... Qd4+ {[%clk 0:00:17.2]} 61. Kh3 {[%clk 0:00:20.3]} 61... Qe5 {[%clk
0:00:16.7]} 62. Qf4 {[%clk 0:00:20.1]} 62... Qe1 {[%clk 0:00:15.3]} 63. Kh2
{[%clk 0:00:20]} 63... Qe2+ {[%clk 0:00:15.8]} 64. Kh3 {[%clk 0:00:21.4]} 64...
Qe1 {[%clk 0:00:16.6]} 65. Kg2 {[%clk 0:00:22.5]} 65... Qe2+ {[%clk 0:00:17.8]}
66. Qf2 {[%clk 0:00:23.6]} 66... Qe4+ {[%clk 0:00:19.3]} 67. Qf3 {[%clk
0:00:24.8]} 67... Qc2+ {[%clk 0:00:20.7]} 68. Kh3 {[%clk 0:00:26]} 68... Qb2
{[%clk 0:00:20.3]} 69. Kg4 {[%clk 0:00:24.9]} 69... Qd4+ {[%clk 0:00:21.1]} 70.
Kh5 {[%clk 0:00:26]} 70... Kh7 {[%clk 0:00:17.7]} 71. g4 {[%clk 0:00:24.1]}
71... Qf6 {[%clk 0:00:15.4]} 72. g5 {[%clk 0:00:22.9]} 72... g6+ {[%clk
0:00:15.6]} 73. fxg6+ {[%clk 0:00:17.5]} 73... Qxg6+ {[%clk 0:00:17.5]} 74. Kg4
{[%clk 0:00:18.9]} 74... hxg5 {[%clk 0:00:15.2]} 75. hxg5 {[%clk 0:00:19.7]}
75... Qe6+ {[%clk 0:00:16.6]} 76. Qf5+ {[%clk 0:00:20.3]} 76... Qg6 {[%clk
0:00:15.4]} 77. Qd7+ {[%clk 0:00:19.5]} 77... Kg8 {[%clk 0:00:15.6]} 78. Qd8+
{[%clk 0:00:20.4]} 78... Kg7 {[%clk 0:00:16.4]} 79. Qe7+ {[%clk 0:00:21.8]}
79... Kg8 {[%clk 0:00:17.7]} 80. Kf4 {[%clk 0:00:23]} 80... Qb1 {[%clk
0:00:11.5]} 81. Qe6+ {[%clk 0:00:23.3]} 81... Kg7 {[%clk 0:00:12.6]} 82. Qf6+
{[%clk 0:00:24.4]} 82... Kg8 {[%clk 0:00:13.6]} 83. Qe6+ {[%clk 0:00:25.1]}
83... Kg7 {[%clk 0:00:15]} 84. Qe5+ {[%clk 0:00:26.8]} 84... Kg8 {[%clk
0:00:16.2]} 85. Kg4 {[%clk 0:00:26.3]} 85... Qd1+ {[%clk 0:00:15.7]} 86. Kf5
{[%clk 0:00:26.9]} 86... Qc2+ {[%clk 0:00:15.2]} 87. Kf6 {[%clk 0:00:27.7]}
87... Qc6+ {[%clk 0:00:14.8]} 88. Qe6+ {[%clk 0:00:27.8]} 88... Qxe6+ {[%clk
0:00:16.4]} 89. Kxe6 {[%clk 0:00:29.7]} 89... Kg7 {[%clk 0:00:18]} 90. Kf5
{[%clk 0:00:30.8]} 90... Kf7 {[%clk 0:00:19.5]} 91. g6+ {[%clk 0:00:31.8]} 91...
Kg7 {[%clk 0:00:20.9]} 92. Kg5 {[%clk 0:00:33.7]} 92... Kg8 {[%clk 0:00:22.4]}
93. Kf6 {[%clk 0:00:35.6]} 93... Kf8 {[%clk 0:00:23.9]} 94. g7+ {[%clk
0:00:37.5]} 94... Kg8 {[%clk 0:00:25.4]} 95. Kg6 {[%clk 0:00:39.4]} 1/2-1/2